bitfinex/quotes_ETHUSD_20250322
["timestamp","ask_amount","ask_price","bid_price","bid_amount"]
[1742612127273,5.0389,1984.6,1984.4,5.3208]
[1742612127681,10.07788,1984.6,1984.4,5.3208]
[1742612129062,10.07788,1984.6,1984.4,4.666]
[1742612129373,5.0389,1984.6,1984.4,4.666]
[1742612129880,5.03905,1984.5,1984.4,4.666]
[1742612131082,5.0393,1984.4,1984.3,5.99]
[1742612131489,5.8335,1984.4,1984.3,5.99]
[1742612132871,5.8335,1984.4,1984.2,26.649]
[1742612132872,5.03956,1984.3,1984.2,26.649]
[1742612137913,6.126866,1984.3,1984.2,26.649]
[1742612138202,0.7942,1984.4,1984.2,31.68871]
[1742612138407,10.07837,1984.5,1984.2,26.649]
[1742612139098,5.03939,1984.4,1984.2,26.649]
[1742612139808,5.03956,1984.3,1984.2,26.649]
[1742612145518,10.07932,1984.3,1984.0,4.665]
[1742612145701,5.03956,1984.3,1984.0,4.665]
[1742612146020,10.07927,1984.3,1984.0,4.665]
[1742612146200,10.07927,1984.3,1984.1,0.47112304]
[1742612146842,5.03981,1984.2,1984.1,0.47112304]
[1742612152430,5.82801,1984.2,1984.1,0.47112304]
[1742612152736,7.65088294,1984.2,1984.1,0.47112304]
[1742612153846,5.04029,1984.1,1983.9,32.636]
[1742612154044,5.04032,1984.0,1983.9,32.636]
[1742612154613,5.04032,1984.0,1983.9,26.646]
[1742612155846,5.04032,1984.0,1983.9,27.11752593]
[1742612158065,10.08046,1984.1,1983.9,27.11752593]
[1742612158256,5.04017,1984.1,1983.9,29.43902531]
[1742612158771,5.04017,1984.1,1984.0,0.47152593]
[1742612163975,10.86803,1984.2,1984.0,0.47152593]
[1742612164746,10.07983,1984.2,1984.0,0.47152593]
[1742612164981,10.07983,1984.2,1984.1,0.47152593]
[1742612166855,5.8276,1984.4,1984.1,5.51151593]
[1742612167055,10.86705,1984.4,1984.1,0.47152593]
[1742612167281,5.8276,1984.4,1984.1,0.47152593]
[1742612167584,10.8671,1984.4,1984.1,0.47152593]
[1742612168787,10.8671,1984.4,1984.2,0.47152593]
[1742612170188,10.8671,1984.4,1984.0,8.01651938]
[1742612171293,5.03956,1984.3,1984.1,0.47191303]
[1742612173091,5.03956,1984.3,1984.2,0.47191303]
[1742612175692,5.8276,1984.4,1984.2,0.47191303]
[1742612175894,5.0391,1984.5,1984.2,2.79341241]
[1742612176082,5.03937,1984.4,1984.2,2.79341241]
[1742612176586,5.03937,1984.4,1984.2,0.47191303]
[1742612176783,5.03937,1984.4,1984.3,0.47191303]
[1742612178970,10.07825,1984.5,1984.3,0.47191303]
[1742612179469,5.0393,1984.4,1984.3,0.47191303]
[1742612185300,5.80382,1984.6,1984.3,2.79341241]
[1742612185475,10.07778,1984.6,1984.3,3.44821241]
[1742612185674,5.03882,1984.6,1984.3,8.48769241]
[1742612185877,5.03882,1984.6,1984.4,2.32149938]
[1742612186091,5.03854,1984.7,1984.4,2.32149938]
[1742612186286,10.07724,1984.7,1984.4,2.32149938]
[1742612186504,5.03854,1984.7,1984.4,2.32149938]
[1742612186717,5.03854,1984.7,1984.4,7.36078938]
[1742612186870,5.03854,1984.7,1984.4,7.83270241]
[1742612188504,5.03854,1984.7,1984.5,0.47191303]
[1742612188875,10.07727,1984.7,1984.5,0.47191303]
[1742612189392,5.03854,1984.7,1984.5,0.47191303]
[1742612189805,5.03854,1984.7,1984.3,14.00569938]
[1742612191102,5.03854,1984.7,1984.4,0.47128543]
[1742612191910,5.03854,1984.7,1984.4,2.79278481]
[1742612192297,5.03854,1984.7,1984.5,0.47128543]
[1742612192487,10.07726,1984.7,1984.5,0.47128543]
[1742612193479,5.03879,1984.6,1984.5,0.47128543]
[1742612193810,5.03879,1984.6,1984.3,40.65069938]
[1742612195681,5.03879,1984.6,1984.4,0.47128252]
[1742612196925,5.03879,1984.6,1984.5,0.47128252]
[1742612199918,5.03854,1984.7,1984.5,0.47128252]
[1742612200095,10.07724,1984.7,1984.5,0.47128252]
[1742612200692,5.84279,1984.6,1984.5,0.47128252]
[1742612200898,7.16307294,1984.6,1984.5,0.47128252]
[1742612201102,5.03928,1984.5,1984.3,32.635]
[1742612201921,5.0393,1984.4,1984.3,32.635]
[1742612203332,5.0393,1984.4,1984.3,6.46183993]
[1742612211030,5.03928,1984.5,1984.3,6.46183993]
[1742612211226,5.03882,1984.6,1984.3,8.78333931]
[1742612211426,5.03882,1984.6,1984.4,0.6548]
[1742612213945,5.03882,1984.6,1984.4,0.6048]
[1742612214252,5.03882,1984.6,1984.5,0.47183993]
[1742612218819,5.83372,1984.6,1984.5,0.47183993]
[1742612219211,8.15521938,1984.6,1984.5,0.47183993]
[1742612219416,7.15309694,1984.6,1984.5,0.47183993]
[1742612220245,10.07896,1984.4,1984.2,32.635]
[1742612220648,5.03946,1984.4,1984.2,32.635]
[1742612221819,5.03946,1984.4,1984.3,0.47201079]
[1742612222149,5.83374,1984.6,1984.3,0.47201079]
[1742612222521,5.03907,1984.5,1984.3,0.47201079]
[1742612222922,5.03907,1984.5,1984.4,0.47201079]
[1742612223854,10.07725,1984.7,1984.4,0.47201079]
[1742612224352,10.07725,1984.7,1984.5,0.47201079]
[1742612224552,6.125765,1984.7,1984.5,0.47201079]
[1742612224733,5.03855,1984.7,1984.5,0.47201079]
[1742612225052,10.07725,1984.7,1984.5,0.47201079]
[1742612225862,10.07725,1984.7,1984.6,0.47201079]
[1742612231455,5.03905,1984.5,1984.2,40.60105938]
[1742612232526,5.03905,1984.5,1984.3,0.47196754]
[1742612234162,5.03905,1984.5,1984.4,0.47196754]
[1742612250334,10.07773,1984.6,1984.4,0.47196754]
[1742612250839,10.07773,1984.6,1984.5,0.47196754]
[1742612251642,5.03883,1984.6,1984.5,0.47196754]
[1742612253672,5.03883,1984.6,1984.5,1.22770006]
[1742612263277,5.03883,1984.6,1984.5,0.75573252]
[1742612264078,5.03883,1984.6,1984.5,1.22782681]
[1742612265474,6.550435,1984.6,1984.5,1.22782681]
[1742612265676,7.317135,1984.6,1984.5,1.22782681]
[1742612266692,7.317135,1984.6,1984.5,0.47209429]
[1742612278760,5.03858,1984.7,1984.5,0.47209429]
[1742612279695,5.03858,1984.7,1984.6,0.47209429]
[1742612287202,5.03813,1984.9,1984.6,0.47209429]
[1742612287503,5.03813,1984.9,1984.6,3.39839367]
[1742612288290,5.03813,1984.9,1984.7,0.47209429]
[1742612288474,10.07632,1984.9,1984.7,0.47209429]
[1742612288902,5.03813,1984.9,1984.7,0.47209429]
[1742612289907,10.07631,1984.9,1984.7,0.47209429]
[1742612290112,10.07631,1984.9,1984.8,0.47209429]
[1742612290481,5.03813,1984.9,1984.8,0.47209429]
[1742612290680,5.03782,1985.0,1984.8,0.47209429]
[1742612293416,5.03782,1985.0,1984.7,5.03851]
[1742612295203,10.07577,1985.0,1984.6,7.96489938]
[1742612295404,10.07577,1985.0,1984.7,5.99]
[1742612295916,10.07577,1985.0,1984.8,0.47116561]
[1742612297119,10.07577,1985.0,1984.7,5.99]
[1742612298914,5.03805,1984.9,1984.7,5.99]
[1742612299791,5.03805,1984.9,1984.8,0.47108137]
[1742612300718,5.03782,1985.0,1984.8,0.47108137]
[1742612301618,5.03782,1985.0,1984.7,11.02851]
[1742612301987,5.03729,1985.2,1984.8,0.6048]
[1742612302183,5.03729,1985.2,1984.8,7.96443938]
[1742612302184,10.07478,1985.2,1984.8,7.96443938]
[1742612302416,5.03755,1985.1,1984.8,7.96443938]
[1742612303111,5.03755,1985.1,1984.9,0.47094909]
[1742612303314,10.07524,1985.1,1984.9,0.47094909]
[1742612303507,5.03755,1985.1,1984.9,0.47094909]
[1742612303703,10.07522,1985.1,1984.9,0.47094909]
[1742612303908,5.03755,1985.1,1984.9,0.47094909]
[1742612304206,5.03755,1985.1,1984.8,5.64294]
[1742612304622,10.07523,1985.1,1984.8,5.64294]
[1742612304821,5.03755,1985.1,1984.8,5.64294]
[1742612307700,5.03755,1985.1,1984.8,7.96443938]
[1742612307902,5.03755,1985.1,1984.9,0.47098257]
[1742612309331,10.07476,1985.2,1984.9,0.47098257]
[1742612309520,5.03732,1985.2,1984.9,0.47098257]
[1742612309726,10.07474,1985.2,1984.9,5.50899257]
[1742612310094,10.07474,1985.2,1984.9,5.03801]
[1742612310326,10.07474,1985.2,1984.8,7.96433938]
[1742612312310,10.07474,1985.2,1984.9,0.4710314]
[1742612313527,10.07474,1985.2,1985.0,0.4710314]
[1742612314131,5.03752,1985.1,1985.0,0.4710314]
[1742612326724,5.03732,1985.2,1985.0,0.4710314]
[1742612326725,10.07476,1985.2,1985.0,0.4710314]
[1742612326925,5.03732,1985.2,1985.0,0.4710314]
[1742612327309,5.03732,1985.2,1985.1,0.4710314]
[1742612329145,5.83592,1985.2,1985.1,0.4710314]
[1742612329327,5.03732,1985.2,1985.1,0.4710314]
[1742612333238,6.862556,1985.2,1985.1,0.4710314]
[1742612334857,5.03781,1985.0,1984.7,37.289]
[1742612335033,5.03781,1985.0,1984.7,42.32753]
[1742612335234,5.03781,1985.0,1984.7,44.64902938]
[1742612336758,5.03781,1985.0,1984.8,0.47133139]
[1742612338423,5.03781,1985.0,1984.9,0.47133139]
[1742612338829,5.85561,1985.0,1984.9,0.47133139]
[1742612339965,0.8178,1985.0,1984.9,0.47133139]
[1742612340462,5.85558,1985.0,1984.9,0.47133139]
[1742612348640,1.007436,1985.2,1984.9,5.50914139]
[1742612348841,10.07477,1985.2,1984.9,0.47133139]
[1742612349980,10.07477,1985.2,1985.0,0.47133139]
[1742612351246,10.07477,1985.2,1985.1,0.47133139]
[1742612353287,5.0373,1985.2,1985.1,0.47133139]
[1742612357387,5.03755,1985.1,1984.8,7.96446938]
[1742612358685,5.03755,1985.1,1984.8,5.64297]
[1742612358994,5.03755,1985.1,1984.9,0.47124669]
[1742612360392,5.03755,1985.1,1985.0,0.47124669]
[1742612363889,5.0373,1985.2,1985.0,0.47124669]
[1742612364078,10.07471,1985.2,1985.0,0.47124669]
[1742612364493,5.03752,1985.1,1985.0,0.47124669]
[1742612364859,5.03752,1985.1,1984.8,7.96442938]
[1742612365088,5.03752,1985.1,1984.8,13.00257938]
[1742612365593,10.07468,1985.2,1984.8,13.00252938]
[1742612365793,5.03756,1985.1,1984.8,7.96439938]
[1742612365985,5.03756,1985.1,1984.8,13.00254938]
[1742612366161,5.03756,1985.1,1984.9,0.47136836]
[1742612366492,10.07472,1985.2,1984.9,0.47136836]
[1742612366906,5.03732,1985.2,1984.9,0.47136836]
[1742612367093,5.03732,1985.2,1984.9,5.50932836]
[1742612367792,5.03732,1985.2,1985.0,0.47136836]
[1742612369596,5.03732,1985.2,1985.1,0.47136836]
[1742612371510,10.84067,1985.3,1985.1,0.47136836]
[1742612372396,10.84067,1985.3,1984.9,5.03781]
[1742612373702,10.84067,1985.3,1985.0,0.47124482]
[1742612375198,10.84067,1985.3,1985.1,0.47124482]
[1742612376500,10.84067,1985.3,1984.9,5.03781]
[1742612380501,5.03728,1985.2,1984.9,5.03781]
[1742612386312,10.07473,1985.2,1984.8,32.28004]
[1742612386507,0.783,1985.1,1984.8,31.67524]
[1742612387385,0.783,1985.1,1984.8,36.71339]
[1742612387606,0.783,1985.1,1984.9,0.47164215]
[1742612389092,0.783,1985.1,1985.0,0.47164215]
[1742612391009,5.03728,1985.2,1985.0,0.47164215]
[1742612391515,5.03728,1985.2,1985.1,0.47164215]
[1742612393614,6.35606394,1985.2,1985.1,0.47164215]
[1742612394382,7.14806394,1985.2,1985.1,0.47164215]
[1742612394892,9.46956332,1985.2,1985.1,0.47164215]
[1742612395878,5.03791,1985.0,1984.7,26.636]
[1742612396083,5.03791,1985.0,1984.7,31.67453]
[1742612397518,5.03791,1985.0,1984.8,0.47161691]
[1742612398620,5.03791,1985.0,1984.9,0.47161691]
[1742612402028,7.35940938,1985.0,1984.9,0.47161691]
[1742612402224,9.97306832,1985.0,1984.9,0.47161691]
[1742612404438,7.35904938,1985.1,1984.9,0.47161691]
[1742612404724,5.0376,1985.1,1984.9,0.47161691]
[1742612405303,10.07532,1985.1,1984.9,0.47161691]
[1742612405508,13.18725938,1985.2,1985.0,0.47161691]
[1742612405708,5.03752,1985.1,1985.0,0.47161691]
[1742612409703,0.791,1985.2,1985.0,0.47161691]
[1742612409899,5.03702,1985.3,1985.0,0.47161691]
[1742612410103,5.03702,1985.3,1985.0,5.50931691]
[1742612410304,10.07419,1985.3,1985.0,5.50931691]
[1742612410529,5.03727,1985.2,1985.1,0.47161691]
[1742612411353,2.32149938,1985.3,1985.1,0.47161691]
[1742612411522,5.03704,1985.3,1985.1,0.47161691]
[1742612412112,8.18367938,1985.4,1985.1,0.47161691]
[1742612412322,13.22062938,1985.4,1985.1,0.47161691]
[1742612412733,13.22063938,1985.4,1985.1,0.47161691]
[1742612413108,8.18367938,1985.4,1985.1,0.47161691]
[1742612413415,8.18367938,1985.4,1985.2,0.47161691]
[1742612414019,7.35827938,1985.4,1985.2,0.47161691]
[1742612414518,7.35827938,1985.4,1985.1,5.03751]
[1742612416134,2.32149938,1985.4,1984.9,2.92629938]
[1742612416322,12.39468938,1985.5,1985.1,5.03741]
[1742612416521,7.35801938,1985.5,1985.1,10.07476]
[1742612416726,7.35801938,1985.5,1985.2,5.03725]
[1742612417743,7.35801938,1985.5,1985.2,5.50813223]
[1742612418639,12.39414938,1985.6,1985.2,6.11293223]
[1742612418815,5.03605,1985.7,1985.3,0.47088223]
[1742612419021,2.32149938,1985.7,1985.3,0.47088223]
[1742612419335,10.07246,1985.7,1985.3,5.50782223]
[1742612419539,2.32149938,1985.6,1985.3,5.50782223]
[1742612419744,10.07246,1985.7,1985.3,5.50782223]
[1742612419745,12.39395938,1985.7,1985.3,5.50782223]
[1742612419953,8.18360938,1985.5,1985.3,0.47088223]
[1742612420115,7.35825938,1985.4,1985.1,5.03747]
[1742612420643,5.03676,1985.4,1985.1,5.03747]
[1742612420837,13.22029938,1985.5,1985.1,5.03735]
[1742612421043,5.03678,1985.4,1985.1,5.03735]
[1742612421214,7.35777938,1985.6,1985.2,0.47056734]
[1742612421422,7.35777938,1985.6,1985.2,5.50773734]
[1742612421620,7.35777938,1985.6,1985.2,6.11253734]
[1742612421951,12.39424938,1985.6,1985.2,6.11253734]
[1742612422242,12.39424938,1985.6,1985.3,0.47056734]
[1742612422742,5.03651,1985.5,1985.3,0.47056734]
[1742612423741,7.35777938,1985.6,1985.2,10.67906]
[1742612423914,10.07227,1985.7,1985.3,5.03694]
[1742612424113,12.39376938,1985.7,1985.3,5.03694]
[1742612424314,5.03632,1985.6,1985.3,5.03694]
[1742612424743,2.32149938,1985.6,1985.3,10.07381]
[1742612424931,2.32149938,1985.6,1985.3,5.03687]
[1742612425131,12.39372938,1985.7,1985.3,5.03687]
[1742612425613,2.32149938,1985.7,1985.3,5.03686]
[1742612425929,7.35760938,1985.7,1985.3,5.03686]
[1742612426134,7.35792938,1985.6,1985.2,5.64202]
[1742612426318,7.35791938,1985.6,1985.2,10.67913]
[1742612426644,7.35804938,1985.5,1985.1,5.03748]
[1742612426846,5.03678,1985.4,1985.1,5.03748]
[1742612427847,5.03678,1985.4,1985.2,0.47031599]
[1742612428645,10.07374,1985.4,1985.2,0.47031599]
[1742612428949,5.83238,1985.4,1985.2,0.47031599]
[1742612429152,5.03702,1985.3,1985.2,0.47031599]
[1742612429450,5.03702,1985.3,1985.0,41.97523]
[1742612429618,5.83238,1985.4,1985.1,5.03752]
[1742612430056,8.15387938,1985.4,1985.0,36.93748]
[1742612430547,13.19080938,1985.4,1985.0,41.97512]
[1742612430729,5.03703,1985.3,1985.0,32.27844]
[1742612431049,8.15387938,1985.4,1985.0,41.97404]
[1742612431250,13.19078938,1985.4,1985.0,36.9364]
[1742612431451,13.19078938,1985.4,1985.0,41.97408]
[1742612431751,8.15387938,1985.4,1985.0,41.97408]
[1742612432060,13.19084938,1985.4,1985.0,36.9364]
[1742612432257,8.15387938,1985.4,1985.0,36.9364]
[1742612432559,5.03702,1985.3,1985.0,36.9364]
[1742612432942,8.15387938,1985.4,1985.0,36.9364]
[1742612433125,13.19080938,1985.4,1985.0,41.97406]
[1742612433458,13.19080938,1985.4,1985.0,36.9364]
[1742612433627,5.03705,1985.3,1985.0,36.9364]
[1742612434024,5.03705,1985.3,1985.0,31.8988]
[1742612434658,5.03705,1985.3,1985.0,36.93656]
[1742612435662,5.03705,1985.3,1985.0,31.8988]
[1742612435851,5.03705,1985.3,1985.0,36.93656]
[1742612437273,7.35901938,1985.1,1985.0,26.636]
[1742612437569,5.03752,1985.1,1985.0,26.636]
[1742612439168,7.35901938,1985.1,1985.0,26.636]
[1742612439935,8.67930432,1985.1,1985.0,26.636]
[1742612440136,7.35901938,1985.1,1985.0,26.636]
[1742612443273,7.35901938,1985.1,1985.0,26.636]
[1742612444564,5.03779,1985.0,1984.8,4.658]
[1742612445486,12.39731938,1985.0,1984.8,4.658]
[1742612445642,5.03803,1984.9,1984.8,4.658]
[1742612445983,7.35952938,1984.9,1984.8,4.658]
[1742612446190,5.03838,1984.8,1984.6,26.635]
[1742612450239,10.07684,1984.8,1984.6,26.635]
[1742612450445,5.03838,1984.8,1984.6,26.635]
[1742612450773,10.07681,1984.8,1984.6,26.635]
[1742612450956,5.03838,1984.8,1984.6,26.635]
[1742612451151,5.03854,1984.7,1984.6,26.635]
[1742612451364,5.03838,1984.8,1984.6,26.635]
[1742612451779,10.07682,1984.8,1984.6,26.635]
[1742612451947,5.03838,1984.8,1984.6,26.635]
[1742612455996,5.0378,1985.0,1984.6,32.27841]
[1742612456202,5.03792,1985.0,1984.7,5.03841]
[1742612456678,5.03813,1984.9,1984.6,32.27854]
[1742612461482,5.03813,1984.9,1984.6,26.635]
[1742612461867,5.03829,1984.8,1984.6,26.635]
[1742612462492,5.03813,1984.9,1984.6,26.635]
[1742612463794,5.03813,1984.9,1984.5,47.36382]
[1742612464685,5.03813,1984.9,1984.5,49.68531938]
[1742612466103,5.03813,1984.9,1984.6,5.03879]
[1742612466315,10.07634,1984.9,1984.5,49.68534938]
[1742612466500,10.07634,1984.9,1984.5,49.68531938]
[1742612466685,5.03813,1984.9,1984.5,49.68531938]
[1742612467769,5.03813,1984.9,1984.5,44.64639938]
[1742612467974,5.03829,1984.8,1984.5,44.64639938]
[1742612468473,5.03829,1984.8,1984.5,42.3249]
[1742612469007,5.03829,1984.8,1984.5,47.36383]
[1742612469209,5.03829,1984.8,1984.5,42.3249]
[1742612471009,5.03829,1984.8,1984.5,37.6669]
[1742612471213,3.09859938,1984.6,1984.5,26.638]
[1742612471510,8.13738938,1984.6,1984.5,26.638]
[1742612474321,5.03941,1984.4,1984.2,5.99]
[1742612474521,10.07889,1984.4,1984.2,5.99]
[1742612475337,5.03956,1984.3,1984.2,5.99]
[1742612477801,10.07892,1984.4,1984.2,5.99]
[1742612479422,5.03941,1984.4,1984.2,5.99]
[1742612481014,10.07829,1984.5,1984.2,5.99]
[1742612481214,5.03902,1984.6,1984.2,11.0298]
[1742612481418,5.03902,1984.6,1984.3,5.64428]
[1742612481606,5.03897,1984.6,1984.3,0.6048]
[1742612482639,5.03905,1984.5,1984.3,0.6048]
[1742612482838,5.03897,1984.6,1984.3,0.6048]
[1742612483240,3.56140232,1984.6,1984.2,32.632]
[1742612483539,10.07887,1984.4,1984.2,32.632]
[1742612484436,7.36105938,1984.3,1984.2,26.642]
[1742612484734,5.03956,1984.3,1984.2,26.642]
[1742612489554,8.12525938,1984.3,1984.2,26.642]
[1742612489718,5.04032,1984.0,1983.9,5.99]
[1742612490062,10.08088,1984.0,1983.8,10.649]
[1742612490244,5.04057,1983.9,1983.8,10.649]
[1742612490648,5.04057,1983.9,1983.8,5.99]
[1742612492629,5.041,1983.8,1983.6,32.634]
[1742612492858,10.08202,1983.8,1983.6,32.634]
[1742612493774,5.041,1983.8,1983.6,32.634]
[1742612495246,5.0359593,1983.8,1983.6,32.634]
[1742612495464,5.0359593,1983.8,1983.6,34.95549938]
[1742612497668,10.08135,1983.9,1983.6,34.95549938]
[1742612498638,10.08134,1983.9,1983.6,34.95549938]
[1742612499273,3.08569938,1984.1,1983.6,32.634]
[1742612499274,5.04108,1983.7,1983.6,32.634]
[1742612499578,5.04101,1983.8,1983.6,32.634]
[1742612500350,10.08198,1983.8,1983.6,32.634]
[1742612500554,5.04098,1983.8,1983.6,32.634]
[1742612501079,10.08197,1983.8,1983.6,32.634]
[1742612503388,5.04108,1983.7,1983.6,32.634]
[1742612504386,5.04098,1983.8,1983.6,32.634]
[1742612504586,10.08196,1983.8,1983.6,32.634]
[1742612504795,5.04108,1983.7,1983.6,32.634]
[1742612505366,10.08191,1983.8,1983.6,32.634]
[1742612505794,5.04093,1983.8,1983.6,32.634]
[1742612506001,10.08192,1983.8,1983.6,32.634]
[1742612507002,5.04093,1983.8,1983.6,32.634]
[1742612507202,5.04093,1983.8,1983.6,5.99]
[1742612507401,10.08193,1983.8,1983.6,5.99]
[1742612507625,5.04093,1983.8,1983.6,5.99]
[1742612508588,5.04061,1983.9,1983.6,8.31149938]
[1742612508906,5.04089,1983.8,1983.6,8.31149938]
[1742612510874,5.04061,1983.9,1983.6,13.35277938]
[1742612511073,10.08134,1983.9,1983.7,0.6048]
[1742612512409,5.04083,1983.8,1983.7,0.6048]
[1742612514209,5.04061,1983.9,1983.7,0.6048]
[1742612515009,5.04009,1984.1,1983.7,7.96714938]
[1742612515214,5.04034,1984.0,1983.8,2.32149938]
[1742612515375,5.04034,1984.0,1983.8,8.31149938]
[1742612515580,5.04034,1984.0,1983.8,5.99]
[1742612515788,10.08088,1984.0,1983.8,5.99]
[1742612515992,5.04057,1983.9,1983.8,5.99]
[1742612516814,5.04057,1983.9,1983.8,32.641]
[1742612521112,5.04034,1984.0,1983.8,32.641]
[1742612521313,10.08084,1984.0,1983.8,32.641]
[1742612521475,5.04057,1983.9,1983.8,32.641]
[1742612523715,5.84577,1983.9,1983.8,32.641]
[1742612526424,5.84577,1983.9,1983.8,5.99]
[1742612527096,5.04114,1983.7,1983.5,10.65]
[1742612527525,10.08237,1983.7,1983.5,10.65]
[1742612528423,5.04114,1983.7,1983.5,10.65]
[1742612530747,10.08242,1983.7,1983.5,10.65]
[1742612530902,5.04114,1983.7,1983.5,10.65]
[1742612531218,10.08237,1983.7,1983.5,10.65]
[1742612532610,5.04114,1983.7,1983.5,10.65]
[1742612536734,5.04087,1983.8,1983.5,18.61770938]
[1742612538135,5.04087,1983.8,1983.5,23.65917938]
[1742612538300,5.04087,1983.8,1983.5,18.61770938]
[1742612540841,10.08193,1983.8,1983.5,13.57629938]
[1742612541439,5.04087,1983.8,1983.5,13.57629938]
[1742612541674,10.08186,1983.8,1983.5,13.57629938]
[1742612541953,5.04087,1983.8,1983.5,13.57629938]
[1742612542162,5.04087,1983.8,1983.5,11.2548]
[1742612542447,5.04118,1983.7,1983.5,10.65]
[1742612542854,10.08249,1983.7,1983.5,10.65]
[1742612543052,5.04118,1983.7,1983.5,10.65]
[1742612543552,10.08246,1983.7,1983.5,10.65]
[1742612543852,5.04118,1983.7,1983.5,10.65]
[1742612544023,5.04133,1983.6,1983.5,10.65]
[1742612544223,5.04118,1983.7,1983.5,10.65]
[1742612545124,5.0406,1983.9,1983.6,5.64602]
[1742612545320,10.08128,1983.9,1983.6,5.64602]
[1742612545829,10.08128,1983.9,1983.6,0.6048]
[1742612546031,5.04083,1983.8,1983.6,0.6048]
[1742612546251,10.0818,1983.8,1983.5,12.97149938]
[1742612547457,5.04118,1983.7,1983.5,10.65]
[1742612548760,5.04118,1983.7,1983.5,12.97149938]
[1742612550129,5.04118,1983.7,1983.5,10.65]
[1742612552266,5.04133,1983.6,1983.5,5.99]
[1742612552629,10.08251,1983.7,1983.5,5.99]
[1742612552834,5.04118,1983.7,1983.5,5.99]
[1742612554673,5.04133,1983.6,1983.5,5.99]
[1742612555269,5.04118,1983.7,1983.5,5.99]
[1742612556771,10.08245,1983.7,1983.5,5.99]
[1742612557270,5.04118,1983.7,1983.5,5.99]
[1742612557468,5.04133,1983.6,1983.5,5.99]
[1742612562283,5.04159,1983.5,1983.4,26.651]
[1742612562970,5.82649,1983.5,1983.4,26.651]
[1742612563171,5.82649,1983.5,1983.2,4.66]
[1742612563172,5.04235,1983.2,1983.1,6.78540798]
[1742612563573,10.86878,1983.4,1983.1,6.78540798]
[1742612563874,5.82675,1983.4,1983.1,6.0]
[1742612564062,10.86882,1983.4,1983.1,6.0]
[1742612564263,10.86874,1983.4,1983.1,6.0]
[1742612564470,5.04222,1983.3,1983.1,6.0]
[1742612565181,5.04235,1983.2,1983.1,6.0]
[1742612565578,7.36384938,1983.2,1983.1,6.0]
[1742612565948,8.14874938,1983.2,1983.1,6.0]
[1742612566582,5.82725,1983.2,1983.1,6.0]
[1742612567160,8.14874938,1983.2,1983.1,6.0]
[1742612568086,8.14874938,1983.2,1983.1,0.01]
[1742612568787,5.82725,1983.2,1983.1,0.01]
[1742612569486,5.04184,1983.4,1983.1,0.01]
[1742612569487,5.84305,1983.4,1983.1,0.01]
[1742612569657,5.04198,1983.4,1983.1,0.01]
[1742612569859,10.08399,1983.4,1983.1,5.05253]
[1742612570060,10.08399,1983.4,1983.1,0.01]
[1742612570557,5.04213,1983.3,1983.1,0.01]
[1742612570760,10.084,1983.4,1983.1,0.01]
[1742612572647,5.04198,1983.4,1983.1,0.01]
[1742612572848,5.04198,1983.4,1983.2,0.6048]
[1742612573052,5.0421,1983.3,1983.2,0.6048]
[1742612573289,10.08399,1983.4,1983.2,0.6048]
[1742612573952,5.0421,1983.3,1983.2,0.6048]
[1742612574153,10.08396,1983.4,1983.2,0.6048]
[1742612574387,5.04195,1983.4,1983.2,0.6048]
[1742612574978,10.88409,1983.6,1983.2,0.6048]
[1742612575175,5.04159,1983.5,1983.2,5.64707]
[1742612576389,5.04159,1983.5,1983.2,0.6048]
[1742612577290,5.04159,1983.5,1983.2,5.64713]
[1742612579521,5.0411,1983.7,1983.3,5.04196]
[1742612579720,8.83567,1983.8,1983.4,5.04171]
[1742612579920,5.0412,1983.7,1983.4,5.04171]
[1742612580121,5.0412,1983.7,1983.3,16.07405]
[1742612580285,10.08247,1983.7,1983.3,11.03197]
[1742612580485,10.08247,1983.7,1983.3,11.03196]
[1742612581799,5.04136,1983.6,1983.3,11.03196]
[1742612582023,5.04136,1983.6,1983.3,16.07394]
[1742612582319,5.04136,1983.6,1983.3,11.03196]
[1742612582925,5.0412,1983.7,1983.3,11.03189]
[1742612583215,5.04095,1983.8,1983.5,5.0414]
[1742612585929,10.08193,1983.8,1983.5,5.0414]
[1742612586130,10.08193,1983.8,1983.4,5.64653]
[1742612586623,10.08193,1983.8,1983.4,10.68829]
[1742612588029,10.08194,1983.8,1983.4,10.68823]
[1742612588323,5.04095,1983.8,1983.4,10.68823]
[1742612588717,5.04095,1983.8,1983.5,5.04159]
[1742612588923,5.0406,1983.9,1983.5,5.04143]
[1742612589225,5.0406,1983.9,1983.6,5.0413]
[1742612589825,10.08134,1983.9,1983.6,5.0413]
[1742612590128,5.04084,1983.8,1983.5,5.04143]
[1742612590492,10.0819,1983.8,1983.4,38.29462]
[1742612590692,5.04084,1983.8,1983.4,38.29453]
[1742612590927,5.04084,1983.8,1983.5,5.04159]
[1742612591515,10.08183,1983.8,1983.5,5.04159]
[1742612591720,5.04084,1983.8,1983.5,5.04159]
[1742612591925,10.89352,1983.8,1983.4,37.68973]
[1742612592111,5.85254,1983.8,1983.4,37.68973]
[1742612592433,5.04111,1983.7,1983.4,37.68973]
[1742612592623,5.85254,1983.8,1983.4,37.6897]
[1742612592825,5.85254,1983.8,1983.5,5.04146]
[1742612594633,5.85254,1983.8,1983.5,11.03146]
[1742612595731,5.04084,1983.8,1983.5,16.07292]
[1742612596039,10.0813,1983.9,1983.5,16.07292]
[1742612596534,5.04086,1983.8,1983.5,11.03146]
[1742612601141,5.04086,1983.8,1983.5,13.3541132]
[1742612601638,5.04086,1983.8,1983.5,11.03146]
[1742612604339,5.04086,1983.8,1983.5,11.63626]
[1742612605237,10.08134,1983.9,1983.5,19.0004232]
[1742612605410,5.85207,1984.0,1983.6,7.3638032]